fUST/lending_fUST_20240518
["ID","MTS","AMOUNT","RATE_DAILY","PERIOD"]
[327331190,1715989840276,-2583.11,0.00016438,2]
[327331192,1715989840286,-500.0,0.00016438,2]
[327331194,1715989840295,-500.0,0.00016438,2]
[327331196,1715989840307,-500.0,0.00016438,2]
[327331198,1715989840317,-500.0,0.00016438,2]
[327331200,1715989840327,-4510.05,0.00016438,2]
[327331202,1715989840336,-500.0,0.00016438,2]
[327331204,1715989840345,-500.0,0.00016438,2]
[327331206,1715989840354,-500.0,0.00016438,2]
[327331208,1715989840364,-500.0,0.00016438,2]
[327331210,1715989840374,-500.69953264,0.00016438,2]
[327331212,1715989840383,-500.0,0.00016438,2]
[327331214,1715989840393,-502.35738942,0.00016438,2]
[327331216,1715989840403,-500.0,0.00016438,2]
[327331218,1715989840412,-500.0,0.00016438,2]
[327331220,1715989840422,-500.0,0.00016438,2]
[327331222,1715989840431,-500.0,0.00016438,2]
[327331224,1715989840441,-500.0,0.00016438,2]
[327331226,1715989840450,-500.0,0.00016438,2]
[327331228,1715989840460,-500.0,0.00016438,2]
[327331231,1715989840469,-5896.69,0.00016438,2]
[327331233,1715989840478,-500.0,0.00016438,2]
[327331234,1715989840487,-500.0,0.00016438,2]
[327331236,1715989840497,-500.0,0.00016438,2]
[327331239,1715989840507,-500.0,0.00016438,2]
[327331241,1715989840516,-500.0,0.00016438,2]
[327331243,1715989840525,-500.0,0.00016438,2]
[327331245,1715989840535,-500.0,0.00016438,2]
[327331247,1715989840544,-500.0,0.00016438,2]
[327331249,1715989840554,-500.0,0.00016438,2]
[327331251,1715989840564,-501.78493775,0.00016438,2]
[327331253,1715989840574,-500.0,0.00016438,2]
[327331255,1715989840584,-500.0,0.00016438,2]
[327331257,1715989840593,-500.0,0.00016438,2]
[327331259,1715989840603,-500.0,0.00016438,2]
[327331261,1715989840613,-500.0,0.00016438,2]
[327331263,1715989840623,-500.0,0.00016438,2]
[327331265,1715989840633,-500.0,0.00016438,2]
[327331267,1715989840642,-23229.01,0.00016438,2]
[327331269,1715989840651,-500.0,0.00016438,2]
[327331271,1715989840661,-500.0,0.00016438,2]
[327331273,1715989840670,-3297.17,0.00016438,2]
[327331275,1715989840679,-500.0,0.00016438,2]
[327331277,1715989840688,-500.0,0.00016438,2]
[327331280,1715989840697,-500.0,0.00016438,2]
[327331283,1715989840708,-500.0,0.00016438,2]
[327331286,1715989840717,-158.21638616,0.00016438,2]
[327331289,1715989840726,-500.0,0.00016438,2]
[327331292,1715989840735,-500.0,0.00016438,2]
[327331295,1715989840745,-500.0,0.00016438,2]
[327331297,1715989840754,-500.0,0.00016438,2]
[327331299,1715989840763,-500.0,0.00016438,2]
[327331301,1715989840773,-500.89923349,0.00016438,2]
[327331303,1715989840782,-500.0,0.00016438,2]
[327331305,1715989840792,-500.47322055,0.00016438,2]
[327331307,1715989840801,-500.0,0.00016438,2]
[327331309,1715989840811,-500.0,0.00016438,2]
[327331311,1715989840821,-500.0,0.00016438,2]
[327331312,1715989840830,-500.0,0.00016438,2]
[327331313,1715989840839,-501.73717795,0.00016438,2]
[327331314,1715989840849,-500.0,0.00016438,2]
[327331315,1715989840858,-500.0,0.00016438,2]
[327331316,1715989840868,-500.0,0.00016438,2]
[327331317,1715989840877,-500.0,0.00016438,2]
[327331318,1715989840887,-500.0,0.00016438,2]
[327331319,1715989840897,-500.0,0.00016438,2]
[327331320,1715989840906,-518.52660179,0.00016438,2]
[327331321,1715989840915,-502.33216634,0.00016438,2]
[327331322,1715989840925,-500.0,0.00016438,2]
[327331323,1715989840934,-500.0,0.00016438,2]
[327331324,1715989840944,-500.0,0.00016438,2]
[327331326,1715989840953,-500.0,0.00016438,2]
[327331328,1715989840963,-159.66382287,0.00016438,2]
[327331330,1715989840972,-500.0,0.00016438,2]
[327331332,1715989840981,-500.0,0.00016438,2]
[327331334,1715989840990,-500.0,0.00016438,2]
[327331336,1715989841000,-500.0,0.00016438,2]
[327331338,1715989841009,-584.77878106,0.00016438,2]
[327331340,1715989841019,-206.75056341,0.00016438,2]
[327331342,1715989841028,-1238.78,0.00016438,2]
[327331344,1715989841038,-642.63361152,0.00016438,2]
[327331346,1715989841048,-500.0,0.00016438,2]
[327331348,1715989841057,-500.0,0.00016438,2]
[327331350,1715989841066,-500.0,0.00016438,2]
[327331352,1715989841076,-500.0,0.00016438,2]
[327331354,1715989841085,-3556.23,0.00016438,2]
[327331356,1715989841096,-187.91517803,0.00016438,2]
[327331358,1715989841105,-530.42,0.00016438,2]
[327331360,1715989841114,-500.0,0.00016438,2]
[327331362,1715989841124,-170.98823797,0.00016438,2]
[327331364,1715989841133,-500.0,0.00016438,2]
[327331366,1715989841143,-500.0,0.00016438,2]
[327331368,1715989841153,-500.0,0.00016438,2]
[327331371,1715989841162,-500.0,0.00016438,2]
[327331372,1715989841172,-151.0,0.00016438,2]
[327331375,1715989841182,-500.0,0.00016438,2]
[327331377,1715989841191,-600.94,0.00016438,2]
[327331379,1715989841203,-505.89911409,0.00016438,2]
[327331381,1715989841213,-151.0,0.00016438,2]
[327331383,1715989841227,-500.0,0.00016438,2]
[327331385,1715989841237,-806.46,0.00016438,2]
[327331387,1715989841246,-500.0,0.00016438,2]
[327331389,1715989841256,-146.86794838,0.00016438,2]
[327331422,1715989841560,-354.60958332,0.00016438,2]
[327331425,1715989841569,-500.0,0.00016438,2]
[327331427,1715989841579,-151.0,0.00016438,2]
[327331429,1715989841588,-506.37290017,0.00016438,2]
[327331431,1715989841597,-500.0,0.00016438,2]
[327331433,1715989841606,-500.0,0.00016438,2]
[327331435,1715989841615,-500.0,0.00016438,2]
[327331437,1715989841625,-151.0,0.00016438,2]
[327331439,1715989841634,-500.0,0.00016438,2]
[327331441,1715989841644,-151.0,0.00016438,2]
[327331443,1715989841653,-500.0,0.00016438,2]
[327331457,1715989841765,-500.0,0.00016438,2]
[327331460,1715989841793,-177.16,0.00016438,2]
[327331462,1715989841802,-500.0,0.00016438,2]
[327331464,1715989841812,-151.0,0.00016438,2]
[327331466,1715989841821,-500.0,0.00016438,2]
[327331468,1715989841830,-500.0,0.00016438,2]
[327331470,1715989841839,-500.0,0.00016438,2]
[327331472,1715989841848,-1103.94,0.00016438,2]
[327331474,1715989841857,-500.0,0.00016438,2]
[327331476,1715989841867,-516.9,0.00016438,2]
[327331478,1715989841875,-500.0,0.00016438,2]
[327331480,1715989841884,-500.0,0.00016438,2]
[327331482,1715989841893,-500.0,0.00016438,2]
[327331484,1715989841902,-500.0,0.00016438,2]
[327331486,1715989841911,-190.22325119,0.00016438,2]
[327331501,1715989842046,-309.77674881,0.00016438,2]
[327331503,1715989842055,-49.72425123,0.00016438,2]
[327331673,1715989843611,-450.27574877,0.00016438,2]
[327331674,1715989843621,-500.0,0.00016438,2]
[327331675,1715989843630,-500.0,0.00016438,2]
[327331676,1715989843639,-428.28,0.00016438,2]
[327331677,1715989843648,-500.0,0.00016438,2]
[327331679,1715989843657,-500.0,0.00016438,2]
[327331681,1715989843666,-500.0,0.00016438,2]
[327331682,1715989843676,-500.0,0.00016438,2]
[327331683,1715989843685,-500.0,0.00016438,2]
[327331684,1715989843693,-501.85975324,0.00016438,2]
[327331685,1715989843702,-500.0,0.00016438,2]
[327331686,1715989843711,-500.0,0.00016438,2]
[327331687,1715989843721,-150.0,0.00016463,2]
[327331689,1715989843730,-274.09997115,0.000165,2]
[327331691,1715989843740,-12703.0,0.000165,2]
[327331693,1715989843750,-151.0,0.000165,2]
[327331696,1715989843760,-151.0,0.000165,2]
[327331698,1715989843769,-151.0,0.000165,2]
[327331699,1715989843779,-151.0,0.000165,2]
[327331702,1715989843788,-151.0,0.000165,2]
[327331703,1715989843798,-1850.258781,0.000165,2]
[327331705,1715989843807,-1850.258781,0.000165,2]
[327331708,1715989843816,-213.552262,0.000165,2]
[327331710,1715989843827,-4205.11921,0.000165,2]
[327331712,1715989843836,-151.0,0.000165,2]
[327331713,1715989843845,-4205.11921,0.000165,2]
[327331716,1715989843854,-1887.510066,0.000165,2]
[327331717,1715989843864,-1887.510066,0.000165,2]
[327331719,1715989843873,-408.29337891,0.00016544,2]
[327331722,1715989843883,-288.35096926,0.00016545,2]
[327331724,1715989843891,-630.3,0.00016605,2]
[327331726,1715989843901,-630.3,0.00016605,3]
[327331727,1715989843910,-150.0,0.00016605,2]
[327331729,1715989843920,-150.0,0.00016605,3]
[327331731,1715989843929,-4221.46001999,0.00016635,2]
[327331733,1715989843939,-151.5885,0.00016639,2]
[327331735,1715989843948,-231.277296,0.00016639,2]
[327331737,1715989843958,-231.277296,0.00016639,2]
[327331739,1715989843968,-151.0,0.00016639,2]
[327331741,1715989843977,-218.828072,0.00016639,2]
[327331744,1715989843988,-218.828072,0.00016639,2]
[327331745,1715989843997,-151.0,0.00016639,2]
[327331747,1715989844006,-151.0,0.00016639,2]
[327331750,1715989844015,-283.50341374,0.0001671,2]
[327331752,1715989844024,-500.0,0.00016712,2]
[327331754,1715989844033,-344.91685889,0.00016712,2]
[327331755,1715989844042,-500.0,0.00016712,2]
[327331756,1715989844052,-385.99,0.00016712,2]
[327331757,1715989844061,-500.0,0.00016712,2]
[327331758,1715989844071,-500.0,0.00016712,4]
[327331759,1715989844081,-234.26974614,0.00016712,2]
[327331760,1715989844090,-500.0,0.00016712,2]
[327331761,1715989844099,-155.16499154,0.00016712,2]
[327331762,1715989844108,-500.0,0.00016712,2]
[327331763,1715989844117,-262.79,0.00016712,2]
[327331764,1715989844126,-500.0,0.00016712,2]
[327331765,1715989844135,-151.0,0.00016712,2]
[327331766,1715989844144,-151.0,0.00016712,2]
[327331767,1715989844153,-608.819002,0.00016712,2]
[327331768,1715989844161,-608.819002,0.00016712,2]
[327331769,1715989844171,-471.4,0.00016712,2]
[327331770,1715989844179,-500.0,0.00016712,2]
[327331771,1715989844188,-151.0,0.00016712,2]
[327331772,1715989844198,-500.0,0.00016712,2]
[327331773,1715989844207,-680.07,0.00016712,2]
[327331774,1715989844219,-584.27,0.00016712,2]
[327331775,1715989844233,-5503.03,0.00016712,2]
[327331776,1715989844243,-2583.11,0.00016712,2]
[327331778,1715989844252,-500.0,0.00016712,2]
[327331780,1715989844261,-4510.05,0.00016712,2]
[327331782,1715989844271,-294.46057121,0.00016712,2]
[327331999,1715989846698,234.26974614,0.00011227,2]
[327333673,1715989923261,234.26974614,0.00011227,2]
[327333674,1715989937205,234.26974614,0.00011227,2]
[327333675,1715989976602,500.0,0.00019726,10]
[327333676,1715990693218,9021.87,0.00023,30]
[327333677,1715990766793,34618.52,0.0002655,120]
[327333679,1715990829163,-156.12244465,0.00013661,2]
[327333680,1715990829184,-196.085571,0.00013699,2]
[327333681,1715990829204,-158.23027563,0.00013758,2]
[327333682,1715990829225,-154.73694719,0.00013758,2]
[327333683,1715990829244,-446.01180885,0.00013759,2]
[327333684,1715990829267,-1526.79106468,0.0001376,2]
[327333685,1715990853128,-1730.07114188,0.00013759,2]
[327333686,1715990856734,150000.0,0.000265,120]
[327333693,1715990946106,-205.48990799,0.00013756,2]
[327333694,1715990967082,-367.82374781,0.00013755,2]
[327333696,1715990970137,-9190.32448667,0.00013755,2]
[327333697,1715990970158,-7893.2342889,0.00013757,2]
[327333698,1715990970179,-154.79876161,0.00013758,2]
[327333699,1715990970213,-2822.75609319,0.00013758,2]
[327333700,1715990970234,-333.40190303,0.00013758,2]
[327333701,1715990970256,-1068.28467209,0.00013758,2]
[327333702,1715990970277,-154.70605849,0.00013758,2]
[327333703,1715990970297,-9619.00393063,0.00013758,2]
[327333704,1715990970322,-674.65439883,0.00013758,2]
[327333705,1715990970344,-8709.65221591,0.00013758,2]
[327333706,1715990970364,-154.70605849,0.00013759,2]
[327333707,1715990970383,-2677.97514069,0.00013759,2]
[327333708,1715990970404,-224.45180395,0.0001376,2]
[327333709,1715990970424,-2045.09005458,0.0001376,2]
[327333710,1715990970444,-23373.20893532,0.0001376,2]
[327333711,1715990970465,-1084.37016178,0.000138,2]
[327333712,1715990970484,-3390.5117,0.00014,2]
[327333713,1715990970504,-209.52059064,0.00014,2]
[327333714,1715990970524,-628.92344938,0.00014621,2]
[327333715,1715990970545,-663.34487783,0.00014621,2]
[327333716,1715990970565,-154.85750331,0.00014621,2]
[327333717,1715990970585,-243.62027154,0.00014622,2]
[327333719,1715991004668,273.37336231,9.9e-05,2]
[327333720,1715991017024,202.0,0.00025,60]
[327333721,1715991028517,234.26974614,0.00014622,2]
[327333752,1715991033077,-189.17661538,0.000149,2]
[327333753,1715991033087,-1253.80878282,0.000149,2]
[327333754,1715991033096,-204.25000596,0.000149,2]
[327333755,1715991033106,-196.085571,0.00014935,2]
[327333756,1715991033115,-1855.72002182,0.00014998,2]
[327333757,1715991033125,-6618.49543342,0.00014998,2]
[327333758,1715991033135,-1084.37016178,0.00014998,2]
[327333759,1715991033145,-3390.5117,0.00014999,2]
[327333760,1715991033154,-942.40757179,0.00015,2]
[327333761,1715991033163,-80000.0,0.00015,2]
[327333762,1715991033173,-1148.90229176,0.00015,2]
[327333763,1715991033183,-2107.25657902,0.00015,2]
[327333764,1715991033193,-1704.29237534,0.00015,2]
[327333765,1715991033203,-1683.4698518,0.00015,2]
[327333766,1715991033212,-1624.71421323,0.00015,2]
[327333799,1715991038706,-775.54771569,0.00015,2]
[327333801,1715991038716,-7966.29275223,0.00016,2]
[327333803,1715991038725,-5019.36336665,0.00016,2]
[327333805,1715991038737,-4296.94494415,0.00016338,2]
[327333807,1715991038746,-2000.0,0.000164,2]
[327333809,1715991038755,-377.47621869,0.00016433,2]
[327333811,1715991038764,-3062.04975284,0.00016435,2]
[327333813,1715991038775,-425.48857528,0.00016436,2]
[327333815,1715991038784,-10482.46743188,0.00016438,3]
[327333817,1715991038794,-500.0,0.00016438,2]
[327333819,1715991038803,-500.0,0.00016438,2]
[327333821,1715991038812,-501.02332322,0.00016438,2]
[327333823,1715991038822,-500.0,0.00016438,2]
[327333825,1715991038830,-500.0,0.00016438,2]
[327333827,1715991038839,-500.0,0.00016438,2]
[327333829,1715991038848,-496.33271539,0.00016438,2]
[327333831,1715991038857,-500.0,0.00016438,4]
[327333833,1715991038866,-549.2543388,0.00016438,2]
[327333835,1715991038875,-500.0,0.00016438,2]
[327333837,1715991038884,-500.0,0.00016438,2]
[327333839,1715991038893,-500.0,0.00016438,2]
[327333841,1715991038902,-500.0,0.00016438,2]
[327333843,1715991038911,-500.0,0.00016438,2]
[327333845,1715991038920,-501.06667719,0.00016438,2]
[327333847,1715991038929,-500.0,0.00016438,2]
[327333849,1715991038938,-500.0,0.00016438,2]
[327333852,1715991038949,-500.0,0.00016438,2]
[327333854,1715991038958,-500.0,0.00016438,2]
[327333856,1715991038968,-496.91563878,0.00016438,2]
[327333858,1715991038977,-500.0,0.00016438,2]
[327333859,1715991038986,-500.0,0.00016438,2]
[327333861,1715991038995,-500.0,0.00016438,2]
[327333864,1715991039005,-500.79962334,0.00016438,2]
[327333865,1715991039014,-500.90492189,0.00016438,2]
[327333867,1715991039023,-500.0,0.00016438,2]
[327333869,1715991039033,-500.0,0.00016438,2]
[327333871,1715991039042,-268.35997529,0.00016438,2]
[327333873,1715991039052,-500.0,0.00016438,2]
[327333876,1715991039061,-203.42,0.00016438,2]
[327333878,1715991039071,-500.0,0.00016438,2]
[327333880,1715991039080,-500.69953264,0.00016438,2]
[327333881,1715991039089,-500.0,0.00016438,2]
[327333883,1715991039098,-500.0,0.00016438,2]
[327333885,1715991039108,-500.0,0.00016438,2]
[327333887,1715991039117,-500.0,0.00016438,2]
[327333889,1715991039126,-500.0,0.00016438,2]
[327333891,1715991039135,-500.0,0.00016438,2]
[327333893,1715991039145,-500.0,0.00016438,2]
[327333895,1715991039154,-500.0,0.00016438,2]
[327333897,1715991039164,-500.0,0.00016438,2]
[327333899,1715991039174,-500.0,0.00016438,2]
[327333902,1715991039183,-500.0,0.00016438,2]
[327333904,1715991039193,-500.0,0.00016438,2]
[327333905,1715991039202,-500.0,0.00016438,2]
[327333907,1715991039212,-500.0,0.00016438,2]
[327333909,1715991039221,-500.0,0.00016438,2]
[327333912,1715991039230,-501.78493775,0.00016438,2]
[327333914,1715991039240,-500.0,0.00016438,2]
[327333916,1715991039250,-502.35738942,0.00016438,2]
[327333918,1715991039259,-500.0,0.00016438,2]
[327333920,1715991039269,-500.0,0.00016438,2]
[327333922,1715991039279,-500.0,0.00016438,2]
[327333924,1715991039288,-500.0,0.00016438,2]
[327333926,1715991039297,-500.0,0.00016438,2]
[327333928,1715991039306,-500.0,0.00016438,2]
[327333930,1715991039316,-500.0,0.00016438,2]
[327333932,1715991039325,-500.0,0.00016438,2]
[327333934,1715991039334,-500.0,0.00016438,2]
[327333936,1715991039343,-500.0,0.00016438,2]
[327333938,1715991039352,-518.52660179,0.00016438,2]
[327333940,1715991039361,-500.0,0.00016438,2]
[327333942,1715991039371,-500.0,0.00016438,2]
[327333944,1715991039380,-158.21638616,0.00016438,2]
[327333946,1715991039389,-206.75056341,0.00016438,2]
[327333948,1715991039398,-500.0,0.00016438,2]
[327333950,1715991039408,-500.0,0.00016438,2]
[327333952,1715991039417,-500.0,0.00016438,2]
[327333954,1715991039426,-500.89923349,0.00016438,2]
[327333956,1715991039435,-514.1380679,0.00016438,2]
[327333957,1715991039444,-500.0,0.00016438,2]
[327333959,1715991039454,-501.73717795,0.00016438,2]
[327333962,1715991039463,-500.0,0.00016438,2]
[327333964,1715991039472,-500.0,0.00016438,2]
[327333966,1715991039481,-500.0,0.00016438,2]
[327333968,1715991039491,-502.33216634,0.00016438,2]
[327333970,1715991039500,-500.0,0.00016438,2]
[327333972,1715991039510,-505.89911409,0.00016438,2]
[327333974,1715991039519,-500.0,0.00016438,2]
[327333976,1715991039529,-500.0,0.00016438,2]
[327333978,1715991039538,-159.66382287,0.00016438,2]
[327333980,1715991039547,-500.0,0.00016438,2]
[327333982,1715991039558,-187.91517803,0.00016438,2]
[327333984,1715991039567,-511.10521844,0.00016438,2]
[327333986,1715991039576,-170.98823797,0.00016438,2]
[327333988,1715991039585,-500.0,0.00016438,2]
[327333990,1715991039594,-500.0,0.00016438,2]
[327333991,1715991039603,-500.0,0.00016438,2]
[327333993,1715991039612,-500.0,0.00016438,2]
[327333995,1715991039621,-500.0,0.00016438,2]
[327333997,1715991039631,-504.29461321,0.00016438,2]
[327333999,1715991039640,-500.0,0.00016438,2]
[327334002,1715991039650,-509.11158163,0.00016438,2]
[327334004,1715991039659,-503.51167733,0.00016438,2]
[327334005,1715991039668,-502.51126909,0.00016438,2]
[327334007,1715991039677,-500.0,0.00016438,2]
[327334009,1715991039687,-504.6275065,0.00016438,2]
[327334011,1715991039701,-500.0,0.00016438,2]
[327334013,1715991039710,-500.0,0.00016438,2]
[327334015,1715991039720,-504.49246044,0.00016438,2]
[327334018,1715991039731,-501.56644249,0.00016438,2]
[327334019,1715991039741,-500.0,0.00016438,2]
[327334022,1715991039751,-500.0,0.00016438,2]
[327334023,1715991039761,-500.0,0.00016438,2]
[327334025,1715991039771,-500.0,0.00016438,2]
[327334027,1715991039781,-500.0,0.00016438,2]
[327334029,1715991039791,-500.0,0.00016438,2]
[327334031,1715991039801,-500.47313397,0.00016438,2]
[327334033,1715991039810,-500.0,0.00016438,2]
[327334035,1715991039820,-500.0,0.00016438,2]
[327334037,1715991039830,-500.0,0.00016438,2]
[327334039,1715991039839,-500.0,0.00016438,2]
[327334041,1715991039849,-500.0,0.00016438,2]
[327334043,1715991039859,-376.95872008,0.00016438,2]
[327334046,1715991039869,-500.0,0.00016438,2]
[327334047,1715991039878,-500.0,0.00016438,2]
[327334050,1715991039887,-500.0,0.00016438,2]
[327334051,1715991039897,-500.0,0.00016438,2]
[327334053,1715991039906,-5896.69,0.00016438,2]
[327334055,1715991039916,-500.0,0.00016438,2]
[327334058,1715991039925,-503.17578765,0.00016438,2]
[327334060,1715991039934,-500.0,0.00016438,2]
[327334062,1715991039944,-502.1537635,0.00016438,2]
[327334064,1715991039954,-3556.23,0.00016438,2]
[327334066,1715991039963,-500.0,0.00016438,2]
[327334068,1715991039972,-500.0,0.00016438,2]
[327334070,1715991039981,-2475.48,0.00016438,2]
[327334072,1715991039990,-500.0,0.00016438,2]
[327334073,1715991039999,-500.0,0.00016438,2]
[327334075,1715991040009,-500.0,0.00016438,2]
[327334078,1715991040019,-500.0,0.00016438,2]
[327334079,1715991040028,-500.0,0.00016438,2]
[327334081,1715991040038,-500.0,0.00016438,2]
[327334083,1715991040048,-500.0,0.00016438,2]
[327334085,1715991040057,-3297.17,0.00016438,2]
[327334088,1715991040067,-500.0,0.00016438,2]
[327334089,1715991040077,-500.0,0.00016438,2]
[327334092,1715991040086,-500.47322055,0.00016438,2]
[327334094,1715991040096,-500.0,0.00016438,2]
[327334096,1715991040106,-500.0,0.00016438,2]
[327334097,1715991040115,-500.0,0.00016438,2]
[327334099,1715991040125,-500.0,0.00016438,2]
[327334101,1715991040134,-500.0,0.00016438,2]
[327334104,1715991040144,-500.0,0.00016438,2]
[327334105,1715991040154,-500.0,0.00016438,2]
[327334108,1715991040164,-500.0,0.00016438,2]
[327334110,1715991040175,-500.0,0.00016438,2]
[327334112,1715991040184,-500.0,0.00016438,2]
[327334114,1715991040194,-500.0,0.00016438,2]
[327334116,1715991040203,-500.0,0.00016438,2]
[327334118,1715991040212,-500.0,0.00016438,2]
[327334120,1715991040222,-500.0,0.00016438,2]
[327334122,1715991040231,-500.0,0.00016438,2]
[327334124,1715991040241,-500.0,0.00016438,2]
[327334126,1715991040250,-500.0,0.00016438,2]
[327334128,1715991040260,-1238.78,0.00016438,2]
[327334130,1715991040269,-500.0,0.00016438,2]
[327334151,1715991040418,-500.0,0.00016438,2]
[327334153,1715991040428,-642.63361152,0.00016438,2]
[327334155,1715991040438,-500.0,0.00016438,2]
[327334158,1715991040448,-530.42,0.00016438,2]
[327334161,1715991040458,-500.0,0.00016438,2]
[327334164,1715991040467,-500.0,0.00016438,2]
[327334166,1715991040476,-500.0,0.00016438,2]
[327334168,1715991040486,-584.77878106,0.00016438,2]
[327334170,1715991040495,-806.46,0.00016438,2]
[327334172,1715991040505,-500.0,0.00016438,2]
[327334174,1715991040514,-522.94149242,0.00016438,2]
[327334176,1715991040524,-500.0,0.00016438,2]
[327334178,1715991040533,-500.0,0.00016438,2]
[327334180,1715991040542,-500.0,0.00016438,2]
[327334182,1715991040551,-500.0,0.00016438,2]
[327334184,1715991040561,-500.0,0.00016438,2]
[327334186,1715991040570,-500.0,0.00016438,2]
[327334188,1715991040579,-500.0,0.00016438,2]
[327334190,1715991040589,-500.0,0.00016438,2]
[327334192,1715991040598,-500.0,0.00016438,2]
[327334194,1715991040607,-500.0,0.00016438,2]
[327334196,1715991040617,-500.0,0.00016438,2]
[327334198,1715991040626,-500.0,0.00016438,2]
[327334200,1715991040636,-375.08,0.00016438,2]
[327334202,1715991040645,-500.0,0.00016438,2]
[327334204,1715991040654,-500.0,0.00016438,2]
[327334206,1715991040663,-600.94,0.00016438,2]
[327334208,1715991040672,-515.96,0.00016438,2]
[327334210,1715991040682,-1057.95,0.00016438,2]
[327334212,1715991040696,-500.0,0.00016438,2]
[327334214,1715991040705,-5273.74,0.00016438,2]
[327334216,1715991040715,-500.0,0.00016438,2]
[327334218,1715991040724,-500.0,0.00016438,2]
[327334220,1715991040735,-500.0,0.00016438,2]
[327334222,1715991040744,-500.0,0.00016438,2]
[327334224,1715991040754,-500.0,0.00016438,2]
[327334226,1715991040765,-500.0,0.00016438,2]
[327334228,1715991040774,-2565.95,0.00016438,2]
[327334230,1715991040783,-500.0,0.00016438,2]
[327334233,1715991040794,-500.0,0.00016438,2]
[327334234,1715991040803,-500.0,0.00016438,2]
[327334236,1715991040812,-500.0,0.00016438,2]
[327334238,1715991040821,-500.0,0.00016438,2]
[327334240,1715991040830,-500.0,0.00016438,2]
[327334243,1715991040840,-447.75220669,0.00016438,2]
[327334245,1715991040849,-500.0,0.00016438,2]
[327334246,1715991040859,-785.81,0.00016438,2]
[327334248,1715991040868,-785.81,0.00016438,2]
[327334250,1715991040878,-500.0,0.00016438,2]
[327334253,1715991040887,-785.81,0.00016438,2]
[327334254,1715991040896,-785.81,0.00016438,2]
[327334256,1715991040906,-785.81,0.00016438,2]
[327334258,1715991040915,-785.81,0.00016438,2]
[327334260,1715991040924,-785.81,0.00016438,2]
[327334263,1715991040934,-500.0,0.00016438,2]
[327334264,1715991040944,-500.0,0.00016438,2]
[327334266,1715991040953,-23229.01,0.00016438,2]
[327334268,1715991040962,-559.93,0.00016438,2]
[327334270,1715991040971,-4322.13,0.00016438,2]
[327334272,1715991040982,-500.0,0.00016438,2]
[327334274,1715991040990,-500.0,0.00016438,2]
[327334277,1715991041000,-204.3360345,0.00016445,2]
[327334279,1715991041009,-204.2939004,0.00016445,2]
[327334281,1715991041019,-408.5878008,0.00016445,2]
[327334282,1715991041029,-785.81,0.00016471,2]
[327334284,1715991041039,-416.98047207,0.00016496,2]
[327334287,1715991041048,-12703.0,0.000165,2]
[327334289,1715991041057,-274.09997115,0.000165,2]
[327334290,1715991041066,-590.6,0.00016587,3]
[327334292,1715991041076,-590.6,0.00016587,2]
[327334294,1715991041085,-4221.46001999,0.00016594,2]
[327334297,1715991041094,-189.17661538,0.00016612,2]
[327334298,1715991041104,-18245.22442153,0.00016612,2]
[327334300,1715991041113,-785.81,0.00016711,2]
[327334302,1715991041123,-785.81,0.00016711,2]
[327334305,1715991041132,-504.91683126,0.00016712,2]